Cogmind - Beta 15 @@@ ROGUE MODE // 2025.08.09 @ 13:29:48 Player: Zoe Result: Destroyed by S-27 Virus with Autogun Performance ------------- Evolutions (6) 3000 Regions Visited (13) 2600 Robots Destroyed (95) 475 Value Destroyed (3834) 3834 Prototype IDs (23) 460 Alien Tech Used (0) 0 Bonus (435) 435 TOTAL SCORE: 10804 Bonus ------- High Alert Combat Kills 128 Follower Combat Kills 7 Aligned with FarCom 300 Cogmind --------- Core Integrity 0/1150 Matter 176/300 Energy 100/100 System Corruption 29% Temperature Cool (0) Movement Core (50) Location -4/Factory Parts ------- > --- POWER (1) -------- (None) > --- PROPULSION (4) --- (None) > --- UTILITY (10) ----- (None) > --- WEAPON (4) ------- (None) > --- INVENTORY (5) ---- Neutrino Core Long-range Sensor Array Peak State ------------ > --- POWER ------------ Neutrino Core > --- PROPULSION ------- Flexi-carbon Leg Flexi-carbon Leg Flexi-carbon Leg Armored Leg > --- UTILITY ---------- Advanced Heat Sink Advanced Heat Sink Small Storage Unit Advanced Sensor Array Improved Signal Interpreter Advanced Targeting Computer Advanced Targeting Computer Recoil Stabilizer Advanced ECM Suite Improved Hacking Suite > --- WEAPON ----------- Gauss Rifle Heavy Machine Gun Enhanced Gauss Cannon > --- INVENTORY -------- Angular Momentum Engine Neutrino Core Neutrino Core Carbon-fiber Leg Carbon-fiber Leg Advanced Sensor Array Rocket Launcher [Rating: 81] Favorites ----------- Power Neutrino Core Engine Deuterium Engine Power Core Neutrino Core Reactor Antimatter Reactor Propulsion Armored Leg Treads Improved Medium Treads Leg Armored Leg Wheel Compact Wheel Flight Unit Flying Fortress v7 Utility Advanced Targeting Computer Device Improved Terrain Scanner Storage Small Storage Unit Processor Advanced Targeting Computer Hackware Improved Hacking Suite Weapon Gauss Rifle Energy Gun Shock Rifle Energy Cannon Heavy Particle Cannon Ballistic Gun Gauss Rifle Ballistic Cannon Gauss Cannon Launcher Rocket Launcher Special Weapon Mining Laser Impact Weapon Heavy Mace Build | -11 -10 -10 -9 -9 -9 -8 -8 -7 -6 -5 -5 -5 -4 ------- Run | Yrd Mat Min Mat Min Exi Min Mat Fac Fac Fac Upp Upp Fac Slots Evolved 12 | . . . 2 . . . 2 2 2 2 . . 2 Power . | . . . . . . . . . . . . . . Propulsion 2 | . . . . . . . 2 . . . . . . Utility 8 | . . . 2 . . . . . 2 2 . . 2 Weapon 2 | . . . . . . . . 2 . . . . . Parts Attached 90 | 8 . . 17 2 1 . 10 19 12 8 2 1 10 Power 16 | 1 . . 3 1 . . 4 2 2 1 . . 2 Engine 11 | 1 . . 3 . . . 4 1 2 . . . . Core 4 | . . . . 1 . . . 1 . 1 . . 1 Reactor 1 | . . . . . . . . . . . . . 1 Propulsion 24 | 2 . . 6 1 . . 1 5 3 . 2 1 3 Treads 3 | . . . . . . . . 2 1 . . . . Leg 17 | 2 . . 6 1 . . . . 2 . 2 1 3 Wheel 3 | . . . . . . . . 3 . . . . . Hover . | . . . . . . . . . . . . . . Flight 1 | . . . . . . . 1 . . . . . . Utility 27 | 2 . . 4 . 1 . 2 5 3 6 . . 4 Device 15 | 1 . . 2 . . . . 3 1 4 . . 4 Storage 3 | 1 . . 1 . 1 . . . . . . . . Processor 8 | . . . 1 . . . 2 2 2 1 . . . Hackware 1 | . . . . . . . . . . 1 . . . Protection . | . . . . . . . . . . . . . . Artifact . | . . . . . . . . . . . . . . Weapon 23 | 3 . . 4 . . . 3 7 4 1 . . 1 Energy Gun 2 | 1 . . . . . . . 1 . . . . . Energy Cannon 1 | . . . . . . . . 1 . . . . . Ballistic Gun 13 | 2 . . 4 . . . . 3 4 . . . . Ballistic Cannon 3 | . . . . . . . . 2 . 1 . . . Launcher 1 | . . . . . . . . . . . . . 1 Special Weapon 1 | . . . . . . . 1 . . . . . . Impact Weapon 2 | . . . . . . . 2 . . . . . . Slashing Weapon . | . . . . . . . . . . . . . . Piercing Weapon . | . . . . . . . . . . . . . . Special Melee Weapon . | . . . . . . . . . . . . . . Unidentified Prototypes . | . . . . . . . . . . . . . . Parts Lost 50 | . . . 4 . . . 9 1 8 . . . 28 Power 4 | . . . . . . . 1 . 1 . . . 2 Propulsion 12 | . . . 2 . . . 1 . 2 . . . 7 Utility 19 | . . . . . . . 4 . 1 . . . 14 Weapon 15 | . . . 2 . . . 3 1 4 . . . 5 Highest Loss Streak 21 | . . . 4 . . . 6 1 6 . . . 21 To Critical Strikes . | . . . . . . . . . . . . . . Average Backups 7 | 4 6 6 7 8 6 5 7 5 7 7 8 8 4 Power 1 | . 1 1 1 1 1 1 . 1 1 2 3 3 2 Propulsion . | 2 2 2 2 3 2 1 . . . . . . . Utility 2 | . 1 1 . 2 2 2 2 2 4 3 4 4 1 Weapon 1 | 1 2 2 3 2 1 1 4 2 2 1 1 1 . Tool/Special . | . . . . . . . . . . . . . . Unused Backups 13 | . . . 3 . 2 . 1 . 2 1 . . 4 Power 6 | . . . 1 . . . 1 . 1 1 . . 2 Propulsion 4 | . . . 2 . 2 . . . . . . . . Utility 3 | . . . . . . . . . 1 . . . 2 Weapon . | . . . . . . . . . . . . . . Tool/Special . | . . . . . . . . . . . . . . Average Slot Usage (%) 87 | . 100 100 98 100 100 100 61 79 92 93 95 100 62 Engine 4 | . 14 14 11 7 . . 5 6 4 . . . . Core 2 | . . . . 3 11 11 2 . 1 4 5 5 3 Treads 4 | . . . . . . . . 4 14 5 3 . . Leg 10 | . 28 28 21 22 22 22 . . 2 11 14 23 13 Wheel 1 | . . . . . . . . 6 3 . . . . Device 12 | . 14 14 23 22 22 22 3 14 5 15 11 11 13 Storage 7 | . 14 14 12 11 11 11 9 7 6 5 5 5 3 Processor 16 | . . . 7 11 11 11 17 7 25 23 23 23 11 Hackware 1 | . . . . . . . . . . 1 5 5 4 Ballistic Gun 17 | . 28 28 21 22 22 22 8 18 15 17 17 17 8 Ballistic Cannon 3 | . . . . . . . . 1 9 5 5 5 2 Peak Build Rating 81 | 9 9 9 16 17 19 19 51 37 57 72 75 73 81 Average Rating 42 | 4 9 9 12 16 17 19 41 27 48 69 72 72 50 On Entrance 29 | . 9 9 9 16 17 19 19 8 37 57 72 73 71 Naked Turns 36 | . . . . . . . . . . . . . 36 Heaviest Build 45 | 14 14 14 25 20 18 18 20 37 37 44 43 43 45 Greatest Support 78 | 20 20 20 20 20 20 20 50 48 78 32 62 62 76 Greatest Overweight (x) 11 | 3 . . 4 1 . . 5 11 1 1 1 . . Average Overweight (x) . | . . . . . . . . 3 . 1 . . . Largest Inventory Capacity 10 | 8 8 8 10 8 8 8 8 8 8 8 8 8 8 Average Capacity 7 | 7 8 8 8 8 8 8 8 8 8 8 8 8 6 Most Carried 9 | 7 6 8 9 8 8 8 8 8 8 8 8 8 8 Average Carried 7 | 4 6 6 7 8 7 8 7 5 7 7 8 8 4 Final Capacity 8 | 8 8 8 8 8 8 8 8 8 8 8 8 8 5 Final Carried 8 | 6 6 8 8 8 8 8 8 8 8 8 8 8 2 Class Distribution -------------------- 47% | Gunner 19% | Mutant 13% | Scavenger-Skirmisher 11% | Skirmisher 7% | Scavenger-Gunner Dominant Class ---------------- Mutant | -10/Materials Mutant | -10/Mines Skirmisher | -9/Materials Scavenger-Skirmisher | -9/Mines Scavenger-Skirmisher | -9/Exiles Scavenger-Skirmisher | -8/Mines Mutant | -8/Materials Skirmisher | -7/Factory Gunner | -6/Factory Gunner | -5/Factory Gunner | -5/Upper Caves Gunner | -5/Upper Caves Gunner | -4/Factory Resources | -11 -10 -10 -9 -9 -9 -8 -8 -7 -6 -5 -5 -5 -4 ----------- Run | Yrd Mat Min Mat Min Exi Min Mat Fac Fac Fac Upp Upp Fac Matter Collected 3114 | 294 32 18 218 76 . . 111 443 828 105 243 210 536 Remotely . | . . . . . . . . . . . . . . Salvage Created 3608 | 77 47 34 418 94 . . 250 461 808 . 264 191 964 Parts 156 | 9 5 5 21 4 . . 11 23 38 . 5 5 30 Haulers Intercepted . | . . . . . . . . . . . . . . Recyclers Shooed 3 | 1 . . . . . . . 1 1 . . . . Parts Field Recycled . | . . . . . . . . . . . . . . Retrieved Matter . | . . . . . . . . . . . . . . Parts Self-Destructed 10 | . . . . . . . . . . . 5 5 . Prevented 1 | . . . . . . . . . . . . 1 . Kills | -11 -10 -10 -9 -9 -9 -8 -8 -7 -6 -5 -5 -5 -4 ------- Run | Yrd Mat Min Mat Min Exi Min Mat Fac Fac Fac Upp Upp Fac Combat Hostiles Destroyed 76 | . 3 2 11 2 . . 9 5 22 . 5 4 13 Melee 2 | . . . . . . . 2 . . . . . . Guns 48 | . 3 2 11 2 . . 3 4 11 . 4 2 6 Cannons 17 | . . . . . . . . 1 11 . 1 2 2 AOE 5 | . . . . . . . . . . . . . 5 Classes Destroyed 14 | 2 1 . 2 . . . 1 5 1 . 1 1 . Worker 6 | . . . . . . . . . 2 . . . 4 Builder 2 | . . . . . . . . 1 . . . . 1 Tunneler 3 | 2 . . . . . . . . . . . . 1 Recycler 4 | 1 . . . . . . . 2 . . . . 1 Mechanic 2 | . . . . . . . . 1 . . . . 1 Watcher 2 | . . . . . . . . 2 . . . . . Swarmer 20 | . 3 2 3 . . . 3 . 9 . . . . Cutter 2 | . . . . . . . 2 . . . . . . Grunt 33 | . . . 5 2 . . 3 3 6 . 3 2 9 Brawler 4 | . . . . . . . . . . . 1 . 3 Duelist 2 | . . . . . . . . . . . . 1 1 Sentry 6 | . . . 3 . . . 1 . 1 . 1 . . Hunter 4 | . . . . . . . . 1 3 . . . . Programmer 5 | . . . . . . . . 1 3 . . 1 . Best Kill Streak 7 | 3 3 2 7 2 . . 4 6 4 . 4 3 6 Combat Bots Only 7 | . 3 2 7 2 . . 4 3 4 . 4 3 5 Max Kills in Single Turn 6 | 1 1 2 2 1 . . 1 3 2 . 1 1 6 Gunslinging 1 | . . 1 1 . . . . . . . . . . Exploded 2 | . . . . . . . . . . . . . 2 Melee 1 | . . . . . . . 1 . . . . . . Uniques/NPCs Destroyed . | . . . . . . . . . . . . . . Combat | -11 -10 -10 -9 -9 -9 -8 -8 -7 -6 -5 -5 -5 -4 -------- Run | Yrd Mat Min Mat Min Exi Min Mat Fac Fac Fac Upp Upp Fac Hostile Shots Fired 647 | . 16 13 78 10 . . 138 41 123 . 14 14 200 Missed 225 | . 7 5 23 5 . . 52 16 43 . 2 2 70 Hits 422 | . 9 8 55 5 . . 86 25 80 . 12 12 130 Melee 12 | . . . . . . . 7 . . . . . 5 Projectile 410 | . 9 8 55 5 . . 79 25 80 . 12 12 125 AOE 2 | . . . . . . . 1 . . . . . 1 Critical Strikes 21 | . . . 1 . . . 7 1 2 . 1 . 9 Damage Taken 8257 | . 71 65 684 66 . . 2048 331 1323 . 239 226 3204 Core 1932 | . 14 8 146 12 . . 407 71 123 . . . 1151 Absorbed by Shields . | . . . . . . . . . . . . . . Regen/Repaired (Parts) 99 | . . . . . . . . . . . . . 99 Core Remaining (%) 78 | 100 . 91 . . . 60 26 89 85 . . 100 . Volleys Fired 176 | 6 7 3 24 6 . . 14 19 41 2 12 13 29 Largest 4 | 2 2 2 2 2 . . 2 4 4 4 4 4 4 Hottest 173 | 40 40 40 43 46 . . 100 173 126 133 133 133 133 Shots Fired 518 | 12 14 6 46 12 . . 20 66 149 8 48 52 85 Gun 374 | 12 14 6 46 12 . . 12 55 80 6 36 39 56 Cannon 126 | . . . . . . . . 11 69 2 12 13 19 Launcher 10 | . . . . . . . . . . . . . 10 Special 8 | . . . . . . . 8 . . . . . . Kinetic 494 | 12 14 6 46 12 . . 12 60 149 8 48 52 75 Thermal 12 | . . . . . . . 8 4 . . . . . Explosive 10 | . . . . . . . . . . . . . 10 Electromagnetic 2 | . . . . . . . . 2 . . . . . Robot Hit Streak 21 | 4 4 2 18 12 . . 1 7 20 . 11 11 21 Robot Miss Streak 4 | 1 4 4 1 2 . . 3 3 3 . 3 2 2 Penetration Max 1 | . . . . . . . . . 1 . 1 . 1 Secondary Targets 6 | . 1 1 3 1 . . . . . . . . . Max Gunslinging Chain 1 | . 1 1 1 1 . . . . . . . . . Shots Hit Robots 341 | 7 6 2 38 9 . . 17 40 94 . 33 31 64 Core Hits 186 | 4 3 2 19 4 . . 4 19 42 . 14 11 64 Critical Kills 2 | . . . . . . . . . 1 . . . 1 Critical Parts Destroyed 4 | . . . . . . . 3 . . . . 1 . Critical Strikes 21 | . . . . . . . 3 1 8 . 3 3 3 Destroy 3 | . . . . . . . . . 1 . . 1 1 Blast 15 | . . . . . . . . 1 7 . 3 2 2 Smash 3 | . . . . . . . 3 . . . . . . Melee Attacks 45 | . . . . . . . 45 . . . . . . Impact 45 | . . . . . . . 45 . . . . . . Slashing . | . . . . . . . . . . . . . . Piercing . | . . . . . . . . . . . . . . Sneak Attacks . | . . . . . . . . . . . . . . Combat Hostiles . | . . . . . . . . . . . . . . Follow-up Attacks . | . . . . . . . . . . . . . . Damage Inflicted 9446 | 71 70 19 375 145 . . 653 920 2195 . 863 795 3340 Guns 4558 | 71 70 19 375 145 . . 79 575 1110 . 586 519 1009 Cannons 2137 | . . . . . . . . 145 1085 . 277 276 354 Explosions 2173 | . . . . . . . . 200 . . . . 1973 Melee 574 | . . . . . . . 574 . . . . . . Ramming 4 | . . . . . . . . . . . . . 4 Kinetic 6597 | 71 70 19 375 145 . . 79 622 2195 . 863 795 1363 Thermal 1297 | . . . . . . . . 281 . . . . 1016 Explosive 957 | . . . . . . . . . . . . . 957 Electromagnetic 17 | . . . . . . . . 17 . . . . . Impact 574 | . . . . . . . 574 . . . . . . Slashing . | . . . . . . . . . . . . . . Piercing . | . . . . . . . . . . . . . . Highest Corruption 29 | . . . . . . . 20 2 5 . . . 29 Average Corruption 7 | . . . . . . . 15 1 4 . . . 27 Corruption Purged . | . . . . . . . . . . . . . . Corruption Blocked . | . . . . . . . . . . . . . . Effects 56 | . . . . . . . 8 . 34 . . . 14 Message Errors 12 | . . . . . . . 1 . 8 . . . 3 Matter Fused 11 | . . . . . . . 3 . 6 . . . 2 Heat Flow Errors 6 | . . . . . . . 1 . 3 . . . 2 Energy Discharges 4 | . . . . . . . . . 3 . . . 1 Parts Rejected 1 | . . . . . . . . . 1 . . . . Parts Fused 1 | . . . . . . . . . 1 . . . . Data Loss (minor) 8 | . . . . . . . . . 7 . . . 1 Data Loss (major) 5 | . . . . . . . 1 . 4 . . . . Misfires 1 | . . . . . . . . . 1 . . . . Alerts 1 | . . . . . . . 1 . . . . . . Misdirections 6 | . . . . . . . 1 . . . . . 5 Overload Shots . | . . . . . . . . . . . . . . Overflow Damage 625 | . . . . . . . 257 156 9 . . . 203 Projectiles 15 | . . . . . . . . . 9 . . . 6 Explosions 353 | . . . . . . . . 156 . . . . 197 Melee 257 | . . . . . . . 257 . . . . . . Knockbacks 18 | . . . . . . . 2 . 8 . 3 1 4 Impact 2 | . . . . . . . 2 . . . . . . Kinetic 15 | . . . . . . . . . 8 . 3 1 3 Secondary 1 | . . . . . . . . . . . . . 1 Self-Inflicted Damage 230 | . . . . . . . . . . . . . 230 Shots 6 | . . . . . . . . . . . . . 6 Rammed 3 | . . . . . . . . . 1 . . . 2 Targets Rammed 3 | . . . . . . . . . 1 . . . 2 Kicked . | . . . . . . . . . . . . . . Crushed . | . . . . . . . . . . . . . . Highest Temperature 496 | . . . 21 2 . . 258 163 307 68 496 352 313 Average Temperature 96 | . . . 7 2 . . 90 77 71 36 217 116 121 Received Heat Transfer 1719 | . . . 324 36 . . 360 54 165 . 108 81 591 Effects 9 | . . . . . . . 1 . 2 . 2 1 3 Energy Bleed 2 | . . . . . . . 1 . . . 1 . . Interference 5 | . . . . . . . . . 2 . . . 3 Short Circuit 1 | . . . . . . . . . . . . 1 . Damage (minor) 1 | . . . . . . . . . . . 1 . . Siege Activations . | . . . . . . . . . . . . . . Martial Activations . | . . . . . . . . . . . . . . Shielding Activations . | . . . . . . . . . . . . . . Robots Disrupted . | . . . . . . . . . . . . . . Combat Hostiles . | . . . . . . . . . . . . . . Robots Corrupted 4 | . . . . . . . 4 . . . . . . Combat Hostiles 4 | . . . . . . . 4 . . . . . . Parts Fried 5 | . . . . . . . 5 . . . . . . Impact Corruptions 8 | . . . . . . . 8 . . . . . . Robots Melted . | . . . . . . . . . . . . . . Combat Hostiles . | . . . . . . . . . . . . . . Parts Melted 1 | . . . . . . . . . . . . . 1 Heat Transferred 961 | . . . . . . . . 211 . . . . 750 Parts Sabotaged . | . . . . . . . . . . . . . . Parts Stolen . | . . . . . . . . . . . . . . Parts Stripped . | . . . . . . . . . . . . . . Power Chain Reactions . | . . . . . . . . . . . . . . Alert | -11 -10 -10 -9 -9 -9 -8 -8 -7 -6 -5 -5 -5 -4 ------- Run | Yrd Mat Min Mat Min Exi Min Mat Fac Fac Fac Upp Upp Fac Maximum Alert Level 2 | . . . . . . . 2 . 1 . . . 2 Low Security (%) 84 | 100 100 100 100 100 . 100 42 100 85 100 . . 33 Level 1 9 | . . . . . . . 54 . 14 . . . 5 Level 2 5 | . . . . . . . 3 . . . . . 61 Level 3 . | . . . . . . . . . . . . . . Level 4 . | . . . . . . . . . . . . . . Level 5 . | . . . . . . . . . . . . . . High Security . | . . . . . . . . . . . . . . Max Security . | . . . . . . . . . . . . . . Peak Influence 631 | 5 60 41 145 49 . . 411 184 244 88 . . 631 Initial 182 | . 3 11 7 49 . . . 182 81 88 . . 37 Average 97 | 1 13 23 51 12 . . 206 48 117 15 . . 350 Influence Increases 3351 | 15 91 40 298 50 . . 749 266 633 59 125 100 925 Destroy 0b10 Robot/C 1540 | . 60 40 220 40 . . 200 100 440 . 100 80 260 Destroy 0b10 Robot/NC 95 | 15 . . . . . . . 30 10 . . . 40 Destroy Leader 304 | . 10 . 50 10 . . 40 34 90 . 10 20 40 Allied During Kill 1 | . . . . . . . 1 . . . . . . Successful Hack 68 | . 21 . 13 . . . 9 . 8 12 . . 5 Disable Machine 390 | . . . . . . . . 60 60 45 . . 225 Anti-Garrison Action 150 | . . . . . . . . . . . . . 150 Destroy Structure 188 | . . . . . . . 19 42 25 2 . . 100 Lose Combat Pursuer 615 | . . . 15 . . . 480 . . . 15 . 105 Influence Decreases 2868 | 10 66 49 192 177 . . 346 503 618 225 127 53 502 Entered New Map 545 | . 2 19 14 78 . . . 221 85 93 6 4 23 Time Decay 1813 | 10 64 30 138 99 . . 236 282 453 132 121 49 199 Lost Part 490 | . . . 40 . . . 90 . 80 . . . 280 Lost Ally 20 | . . . . . . . 20 . . . . . . Squads Dispatched 25 | . 2 . 1 . . . 5 5 5 1 . . 6 Investigation 8 | . 2 . . . . . 1 2 2 . . . 1 Extermination 6 | . . . . . . . . 2 2 1 . . 1 Reinforcement 8 | . . . 1 . . . 4 1 1 . . . 1 Assault 3 | . . . . . . . . . . . . . 3 Garrison . | . . . . . . . . . . . . . . Intercept . | . . . . . . . . . . . . . . Searches Triggered . | . . . . . . . . . . . . . . Construction Impeded 2 | . . . . . . . . 1 . . . . 1 Haulers Reinforced . | . . . . . . . . . . . . . . Active Scanning Responses . | . . . . . . . . . . . . . . Cargo Convoy Interrupts . | . . . . . . . . . . . . . . Stealth | -11 -10 -10 -9 -9 -9 -8 -8 -7 -6 -5 -5 -5 -4 --------- Run | Yrd Mat Min Mat Min Exi Min Mat Fac Fac Fac Upp Upp Fac Distress Signals 5 | . 1 . . . . . 2 . 1 . . . 1 Communications Jammed . | . . . . . . . . . . . . . . Distress Signals . | . . . . . . . . . . . . . . Times Spotted 154 | . 4 3 12 2 . . 46 16 27 . 6 5 33 Peak Tracking Total 12 | . 3 3 8 2 . . 12 4 4 . 4 4 10 Tactical Retreats 19 | . . . 1 . . . 15 . . . 1 . 2 Traps | -11 -10 -10 -9 -9 -9 -8 -8 -7 -6 -5 -5 -5 -4 ------- Run | Yrd Mat Min Mat Min Exi Min Mat Fac Fac Fac Upp Upp Fac Traps Triggered 4 | . 1 . . . . . . . 3 . . . . Indirectly . | . . . . . . . . . . . . . . Trap Hack Attempts . | . . . . . . . . . . . . . . Triggered . | . . . . . . . . . . . . . . Disarmed . | . . . . . . . . . . . . . . Reprogrammed . | . . . . . . . . . . . . . . Reused . | . . . . . . . . . . . . . . Traps Extracted . | . . . . . . . . . . . . . . Installed . | . . . . . . . . . . . . . . Triggered . | . . . . . . . . . . . . . . Machines | -11 -10 -10 -9 -9 -9 -8 -8 -7 -6 -5 -5 -5 -4 ---------- Run | Yrd Mat Min Mat Min Exi Min Mat Fac Fac Fac Upp Upp Fac Machines Disabled 27 | . . . . . . . . 4 4 3 . . 16 Max in Single Turn 8 | . . . . . . . . 4 1 2 . . 8 Garrison Access 2 | . . . . . . . . . . 1 . . 1 Machines Repaired . | . . . . . . . . . . . . . . Machines Dismantled . | . . . . . . . . . . . . . . Machines Sabotaged . | . . . . . . . . . . . . . . Overloaded Fab Kills . | . . . . . . . . . . . . . . Hacking | -11 -10 -10 -9 -9 -9 -8 -8 -7 -6 -5 -5 -5 -4 --------- Run | Yrd Mat Min Mat Min Exi Min Mat Fac Fac Fac Upp Upp Fac Machines Accessed 19 | . 2 . 3 . 1 . 3 2 3 3 . . 2 Terminals 12 | . 2 . 3 . . . 2 2 1 1 . . 1 Fabricators 1 | . . . . . . . . . 1 . . . . Repair Stations 3 | . . . . . . . 1 . 1 . . . 1 Recycling Units 1 | . . . . . . . . . . 1 . . . Scanalyzers . | . . . . . . . . . . . . . . Garrison Access 1 | . . . . . . . . . . 1 . . . Total Hacks 56 | . 8 . 13 . 1 . 8 5 11 4 . . 6 Successful 34 | . 5 . 8 . 1 . 7 2 5 3 . . 3 Failed 22 | . 3 . 5 . . . 1 3 6 1 . . 3 Catastrophic 2 | . . . . . . . 1 1 . . . . . Database Lockouts . | . . . . . . . . . . . . . . Manual 25 | . 7 . 6 . 1 . 4 4 2 1 . . . Terminals 40 | . 8 . 13 . . . 6 5 4 1 . . 3 Fabricators 4 | . . . . . . . . . 4 . . . . Repair Stations 8 | . . . . . . . 2 . 3 . . . 3 Recycling Units 1 | . . . . . . . . . . 1 . . . Scanalyzers . | . . . . . . . . . . . . . . Garrison Access 2 | . . . . . . . . . . 2 . . . Terminal Hacks 18 | . 3 . 5 . 1 . 3 1 3 1 . . 1 Record 3 | . . . . . . . . 1 2 . . . . Robot Analysis 2 | . 1 . . . . . . . 1 . . . . Open DSF 2 | . . . . . . . . . . 1 . . 1 Emergency Access Points 1 | . . . . . . . 1 . . . . . . Terminal Index 3 | . 1 . 1 . . . 1 . . . . . . Maintenance Status 1 | . . . 1 . . . . . . . . . . Surveillance Status 1 | . . . 1 . . . . . . . . . . Hauler Manifests 1 | . . . 1 . . . . . . . . . . Registered Components 1 | . 1 . . . . . . . . . . . . Zone Layout 2 | . . . 1 . . . 1 . . . . . . Proto ID Catalog 1 | . . . . . 1 . . . . . . . . Fabricator Hacks 1 | . . . . . . . . . 1 . . . . Network Status 1 | . . . . . . . . . 1 . . . . Repair Station Hacks 4 | . . . . . . . 2 . . . . . 2 Scan Component 2 | . . . . . . . 1 . . . . . 1 Repair 2 | . . . . . . . 1 . . . . . 1 Recycling Unit Hacks . | . . . . . . . . . . . . . . Scanalyzer . | . . . . . . . . . . . . . . Garrison Access Hacks 1 | . . . . . . . . . . 1 . . . Seal Access 1 | . . . . . . . . . . 1 . . . Unauthorized Hacks 10 | . 2 . 3 . . . 2 1 1 1 . . . Terminals 9 | . 2 . 3 . . . 2 1 1 . . . . Botnet 9 | . 2 . 3 . . . 2 1 1 . . . . Fabricators . | . . . . . . . . . . . . . . Repair Stations . | . . . . . . . . . . . . . . Recycling Units 1 | . . . . . . . . . . 1 . . . Reject 1 | . . . . . . . . . . 1 . . . Scanalyzers . | . . . . . . . . . . . . . . Garrison Access . | . . . . . . . . . . . . . . Data Cores Recovered . | . . . . . . . . . . . . . . Used . | . . . . . . . . . . . . . . Hacking Detections 11 | . 1 . 1 . . . 2 2 2 1 . . 2 Full Trace Events 8 | . 1 . 1 . . . 1 2 2 . . . 1 Feedback Events 2 | . . . . . . . . 1 1 . . . . Corruption 2 | . . . . . . . . 1 1 . . . . Feedback Blocked . | . . . . . . . . . . . . . . Robot Schematics Acquired . | . . . . . . . . . . . . . . Robots Built . | . . . . . . . . . . . . . . Authchips . | . . . . . . . . . . . . . . Time . | . . . . . . . . . . . . . . Total Robot Build Rating . | . . . . . . . . . . . . . . Part Schematics Acquired . | . . . . . . . . . . . . . . Parts Built . | . . . . . . . . . . . . . . Authchips . | . . . . . . . . . . . . . . Time . | . . . . . . . . . . . . . . Total Part Build Rating . | . . . . . . . . . . . . . . Parts Repaired 1 | . . . . . . . . . . . . . 1 Time 51 | . . . . . . . 38 . . . . . 13 Parts Recycled . | . . . . . . . . . . . . . . Recycled Matter . | . . . . . . . . . . . . . . Retrieved Matter . | . . . . . . . . . . . . . . Retrieved Components . | . . . . . . . . . . . . . . Parts Scanalyzed . | . . . . . . . . . . . . . . Part Schematics Acquired . | . . . . . . . . . . . . . . Parts Damaged . | . . . . . . . . . . . . . . Bothacking | -11 -10 -10 -9 -9 -9 -8 -8 -7 -6 -5 -5 -5 -4 ------------ Run | Yrd Mat Min Mat Min Exi Min Mat Fac Fac Fac Upp Upp Fac Used RIF Installer . | . . . . . . . . . . . . . . Robots Hacked . | . . . . . . . . . . . . . . Non-combat . | . . . . . . . . . . . . . . Combat . | . . . . . . . . . . . . . . Robot Hacks Applied . | . . . . . . . . . . . . . . Relay Couplers Released 3 | . . . . . . . . . . . . . 3 Machine Destruction 3 | . . . . . . . . . . . . . 3 Fabnet Peak Effective % . | . . . . . . . . . . . . . . Robots Rewired . | . . . . . . . . . . . . . . Allies Hacked . | . . . . . . . . . . . . . . Hacks Repelled . | . . . . . . . . . . . . . . Allies | -11 -10 -10 -9 -9 -9 -8 -8 -7 -6 -5 -5 -5 -4 -------- Run | Yrd Mat Min Mat Min Exi Min Mat Fac Fac Fac Upp Upp Fac Total Allies 3 | . . . . 3 . . . . . . . . . Largest Group 3 | . . . . 3 3 3 3 . . . . . . Highest-Rated Group 40 | . . . . 40 40 40 40 . . . . . . Highest-Rated Ally 16 | . . . . 16 16 16 16 . . . . . . Total Orders . | . . . . . . . . . . . . . . Ally Attacks 6 | . . . . . . . 6 . . . . . . Total Damage 60 | . . . . . . . 60 . . . . . . Kills 1 | . . . . . . . 1 . . . . . . Allies Corrupted . | . . . . . . . . . . . . . . Allies Melted . | . . . . . . . . . . . . . . Intel | -11 -10 -10 -9 -9 -9 -8 -8 -7 -6 -5 -5 -5 -4 ------- Run | Yrd Mat Min Mat Min Exi Min Mat Fac Fac Fac Upp Upp Fac Active Infowar (turns) 3853 | . 221 61 403 379 282 79 111 510 . 741 569 272 225 Sensors 2309 | . . . . . . . . 510 . 733 569 272 225 Terrain 2031 | . 221 61 403 379 282 79 97 509 . . . . . Structural 1160 | . . . 326 379 282 79 94 . . . . . . Seismic 130 | . . . 130 . . . . . . . . . . ECM 8 | . . . . . . . . . . 8 . . . Robot Analysis Total 2 | . 1 . . . . . . . 1 . . . . Derelict Logs Recovered 4 | . . 1 . 1 . . . . . . 1 1 . Drone Launches . | . . . . . . . . . . . . . . Drone Recoveries . | . . . . . . . . . . . . . . Exploration | -11 -10 -10 -9 -9 -9 -8 -8 -7 -6 -5 -5 -5 -4 ------------- Run | Yrd Mat Min Mat Min Exi Min Mat Fac Fac Fac Upp Upp Fac Turns Passed 6339 | 95 221 61 403 379 282 79 533 981 1249 747 569 272 468 Spaces Moved 3391 | 54 96 40 178 218 230 50 449 316 566 335 336 137 386 Core 369 | 21 . . 1 . . . 32 95 . . . . 220 Treads 633 | . . . . . . . . 160 473 . . . . Legs 1911 | 33 96 40 177 218 230 50 . . 93 335 336 137 166 Wheels 61 | . . . . . . . . 61 . . . . . Hover . | . . . . . . . . . . . . . . Flight 417 | . . . . . . . 417 . . . . . . Fastest Speed 50 | 50 120 120 120 120 120 120 50 93 160 190 120 120 50 Average Speed 142 | 109 120 120 135 120 120 120 60 275 171 190 158 120 80 Slowest Speed 600 | 200 120 120 250 190 120 120 300 600 240 190 190 120 120 Overloaded Moves . | . . . . . . . . . . . . . . Propulsion Burnouts . | . . . . . . . . . . . . . . Robots Hopped 3 | . . . . . . . 3 . . . . . . Potential Cave-ins 18 | . . . . . . . 16 . . . . 2 . Cave-ins Triggered 4 | . . . . . . . 3 . . . . . 1 Exploration Rate (%) 25 | 5 26 9 27 42 61 23 44 8 22 11 51 16 14 Regions Visited 13 Branch Regions 6 Pre-discovered Areas 1 | . . . . 1 . . . . . . . . . Known Exits Taken 4 | . . . 1 . . . . . . 1 1 1 . Unknown Exits Taken 9 | 1 1 1 . 1 1 1 1 1 1 . . . . Scrap Searched 2 | . . . . . . . . . . . 2 . . Spaces Dug 49 | . . . . . . . 38 . 6 . . 5 . Terrain Destroyed 197 | . . . . . . . 38 39 26 . 9 13 72 Melee 30 | . . . . . . . 30 . . . . . . Projectile 68 | . . . . . . . 8 4 26 . 9 13 8 AOE 99 | . . . . . . . . 35 . . . . 64 Terrain Rammed . | . . . . . . . . . . . . . . Walls Destroyed . | . . . . . . . . . . . . . . Machines Disabled . | . . . . . . . . . . . . . . Actions | -11 -10 -10 -9 -9 -9 -8 -8 -7 -6 -5 -5 -5 -4 --------- Run | Yrd Mat Min Mat Min Exi Min Mat Fac Fac Fac Upp Upp Fac Total 4487 | 77 189 47 304 323 238 69 594 382 754 444 353 222 491 Wait 657 | . 87 3 60 96 2 20 58 13 113 89 1 69 46 Move 3374 | 53 95 39 177 217 229 49 444 315 565 334 335 136 386 Hop 1 | . . . . . . . 1 . . . . . . Pick Up 70 | 10 . 2 11 . 1 . 13 8 13 4 . . 8 Fast Attach 21 | 3 . . 1 1 . . 1 6 3 1 2 1 2 Attach 44 | 4 . . 6 . . . 7 8 7 2 . . 10 Detach 2 | . . . 1 . . . . 1 . . . . . Swap 43 | 1 . . 11 1 1 . 4 8 4 6 1 1 5 Drop 51 | . . . 13 2 5 . 7 4 7 6 2 2 3 Fire 176 | 6 7 3 24 6 . . 14 19 41 2 12 13 29 Melee 45 | . . . . . . . 45 . . . . . . Ram 2 | . . . . . . . . . . . . . 2 Kick . | . . . . . . . . . . . . . . Crush 1 | . . . . . . . . . 1 . . . . Escape Stasis . | . . . . . . . . . . . . . . Rewire . | . . . . . . . . . . . . . . Trap . | . . . . . . . . . . . . . . Miscellaneous . | . . . . . . . . . . . . . . Route ------- -11/Scrapyard -10/Materials -10/Mines -9/Materials (discovered 3 exits: *Min x2 / [*Sto]) -9/Mines (discovered 2 exits: *Mat / *Exi) -9/Exiles -8/Mines -8/Materials -7/Factory -6/Factory -5/Factory (discovered 2 exits: *Upp / DSF) -5/Upper Caves -5/Upper Caves -4/Factory History --------- Turn | Location | Event 10 | -11/Scrapyard | Discovered new exit (range 14) 96 | -11/Scrapyard | Entered Materials 306 | -10/Materials | Build established: Mutant 311 | -10/Materials | Discovered new exit (range 6) 317 | -10/Materials | Entered Mines 325 | -10/Mines | Discovered new exit (range 15) 378 | -10/Mines | Entered Materials 378 | -9/Materials | Evolved 2 slots: Utility x2 379 | -9/Materials | Identified exit to Mines 594 | -9/Materials | Discovered new exit (range 8) 706 | -9/Materials | Lost 4 parts (2n2w) 708 | -9/Materials | Destroyed 7 combat bots 781 | -9/Materials | Entered Mines 1003 | -9/Mines | Build established: Scavenger-Skirmisher 1104 | -9/Mines | Discovered new exit (range 15) 1130 | -9/Mines | Assisted by bots powering up and referring to "LRC-V3" 1136 | -9/Mines | Discovered new exit (range 13) 1149 | -9/Mines | Deemed a non-threat by the Exiles lab entrance 1160 | -9/Mines | Entered Exiles 1160 | -9/Exiles | Accompanied by 3 allies 1189 | -9/Exiles | Met 8R-AWN 1210 | -9/Exiles | Met EX-HEX 1244 | -9/Exiles | Met EX-BIN 1260 | -9/Exiles | Aligned with FarCom system 1261 | -9/Exiles | Given EX-Vault access code 1292 | -9/Exiles | Opened EX-Vault 1303 | -9/Exiles | Found Flying Fortress v7 1328 | -9/Exiles | Warned to stay clear of 0b10 Research branches 1363 | -9/Exiles | Met EX-DEC 1430 | -9/Exiles | Discovered new exit (range 10) 1442 | -9/Exiles | Left Exiles lab with Flying Fortress v7 1442 | -9/Exiles | Entered Mines 1442 | -8/Mines | Accompanied by 3 allies 1484 | -8/Mines | Discovered new exit (range 12) 1521 | -8/Mines | Entered Materials 1521 | -8/Materials | Accompanied by 3 allies 1521 | -8/Materials | Evolved 2 slots: Propulsion x2 1587 | -8/Materials | Lost 3 allies 1911 | -8/Materials | Crushed by falling debris 1932 | -8/Materials | Build established: Mutant 1944 | -8/Materials | Crushed by falling debris 1944 | -8/Materials | System corruption reached 10% 1977 | -8/Materials | Crushed by falling debris 1977 | -8/Materials | Core integrity fell below 50% 2008 | -8/Materials | Lost 6 parts (1p1n2u2w) 2039 | -8/Materials | Discovered new exit (range 6) 2054 | -8/Materials | Entered Factory 2054 | -7/Factory | Evolved 2 slots: Weapon x2 2356 | -7/Factory | Build established: Skirmisher 2925 | -7/Factory | Discovered new exit (range 14) 2927 | -7/Factory | Build established: Scavenger-Gunner 3035 | -7/Factory | Entered another Factory area 3035 | -6/Factory | Evolved 2 slots: Utility x2 3385 | -6/Factory | Build established: Gunner 3722 | -6/Factory | Lost 6 parts (1n1u4w) 4276 | -6/Factory | Discovered new exit (range 5) 4284 | -6/Factory | Entered another Factory area 4284 | -5/Factory | Evolved 2 slots: Utility x2 4675 | -5/Factory | Identified exit to DSF 5023 | -5/Factory | Discovered new exit (range 4) 5029 | -5/Factory | Identified exit to Upper Caves 5031 | -5/Factory | Entered Upper Caves 5035 | -5/Upper Caves | Attracted the attention of an 0b10 checkpoint 5054 | -5/Upper Caves | Learned Factory terminal intel 5523 | -5/Upper Caves | Discovered new exit (range 15) 5539 | -5/Upper Caves | Identified exit to Upper Caves 5600 | -5/Upper Caves | Entered another Upper Caves area 5666 | -5/Upper Caves | Encountered a Warlord checkpoint 5682 | -5/Upper Caves | Identified exit to Factory 5872 | -5/Upper Caves | Entered Factory 5872 | -4/Factory | Evolved 2 slots: Utility x2 5873 | -4/Factory | Loaded intel: 28 terminal locations 5970 | -4/Factory | Repaired Sml. Storage Unit 6094 | -4/Factory | Lost 4 parts (3u1w) 6122 | -4/Factory | First assault squad dispatched 6171 | -4/Factory | Crushed by falling debris 6171 | -4/Factory | System corruption reached 10% 6202 | -4/Factory | Core integrity fell below 50% 6226 | -4/Factory | Lost 21 parts (2p6n10u3w) 6333 | -4/Factory | Core integrity fell below 20% 6340 | -4/Factory | Destroyed by S-27 Virus with Autogun Last Messages --------------- 06197_ Acquired 20 matter. 06197_ U-05 Engineer lays Concrete. 06201_ Critical hit (Burn: +50). 06205_ T-07 Excavator is excavating. 06214_ System corrupted: Matter fused (-9). 06245_ System corrupted: Heat flow error (+206). 06261_ System corrupted: Component data lost. 06276_ :O46EK 6S QFX8KR7B=&WXZ> 06296_ Penetrated by Slug. 06301_ Slug penetrates Wall. 06303_ ALERT: Potential suspicious activity detected, Programmers report to Factory Zone 5H. 06304_ Imp. Hacking Suite destroyed. 06304_ Slug penetrates Wall. 06306_ CM7=YMV7VRG1K:IQH GY76XE1UO